[Event "Titled Tuesday Blitz May 30 Late 2023"]
[White "Pinheiro, Iung Alicio de O."]
[Black "Hajiyev, Kanan"]
[WhiteFideId "2104350"]
[BlackFideId "13404148"]
[WhiteElo "2283"]
[BlackElo "2103"]
[Result "0-1"]
[Round "03"]
[TimeControl "180+2"]
[Date "2023.05.31"]
[WhiteClock "0:00:12"]
[BlackClock "0:00:15"]

1. d4 {[%clk 0:03:00]}  Nf6 {[%clk 0:02:55]} 2. c4 {[%clk 0:03:00]}  g6 {[%clk 0:02:55]} 3. Nc3 {[%clk 0:03:00]}  d5 {[%clk 0:02:56]} 4. Nf3 {[%clk 0:02:59]}  Bg7 {[%clk 0:02:53]} 5. h3 {[%clk 0:02:59]}  c5 {[%clk 0:02:33]} 6. cxd5 {[%clk 0:03:00]}  Nxd5 {[%clk 0:02:29]} 7. e4 {[%clk 0:02:46]}  Nxc3 {[%clk 0:02:14]} 8. bxc3 {[%clk 0:02:47]}  O-O {[%clk 0:02:12]} 9. Be2 {[%clk 0:02:45]}  Nc6 {[%clk 0:02:12]} 10. Be3 {[%clk 0:02:45]}  Qc7 {[%clk 0:02:11]} 11. O-O {[%clk 0:02:43]}  b6 {[%clk 0:02:11]} 12. Rc1 {[%clk 0:02:42]}  Bb7 {[%clk 0:02:06]} 13. d5 {[%clk 0:02:39]}  Ne5 {[%clk 0:02:01]} 14. c4 {[%clk 0:02:03]}  Nxf3+ {[%clk 0:01:46]} 15. Bxf3 {[%clk 0:02:00]}  Rad8 {[%clk 0:01:44]} 16. Qd2 {[%clk 0:01:57]}  e6 {[%clk 0:01:34]} 17. Bg5 {[%clk 0:01:53]}  f6 {[%clk 0:01:28]} 18. Bf4 {[%clk 0:01:52]}  e5 {[%clk 0:01:10]} 19. Be3 {[%clk 0:01:34]}  Qd7 {[%clk 0:01:01]} 20. Qc2 {[%clk 0:01:03]}  f5 {[%clk 0:00:57]} 21. Bg5 {[%clk 0:00:56]}  Rde8 {[%clk 0:00:54]} 22. a4 {[%clk 0:00:51]}  f4 {[%clk 0:00:53]} 23. Bg4 {[%clk 0:00:51]}  Qf7 {[%clk 0:00:45]} 24. f3 {[%clk 0:00:46]}  Bc8 {[%clk 0:00:37]} 25. Bxc8 {[%clk 0:00:40]}  Rxc8 {[%clk 0:00:38]} 26. Bh4 {[%clk 0:00:40]}  Bf6 {[%clk 0:00:26]} 27. Bf2 {[%clk 0:00:35]}  a5 {[%clk 0:00:20]} 28. Rb1 {[%clk 0:00:34]}  Bd8 {[%clk 0:00:20]} 29. Rfd1 {[%clk 0:00:33]}  Ra8 {[%clk 0:00:17]} 30. d6 {[%clk 0:00:32]}  Ra7 {[%clk 0:00:17]} 31. Rd5 {[%clk 0:00:31]}  Re8 {[%clk 0:00:17]} 32. Rbd1 {[%clk 0:00:31]}  Rd7 {[%clk 0:00:17]} 33. Qb3 {[%clk 0:00:31]}  Qe6 {[%clk 0:00:16]} 34. Qb5 {[%clk 0:00:31]}  Rf8 {[%clk 0:00:16]} 35. Qc6 {[%clk 0:00:29]}  Rf6 {[%clk 0:00:16]} 36. Bh4 {[%clk 0:00:29]}  Rff7 {[%clk 0:00:14]} 37. Bxd8 {[%clk 0:00:27]}  Rxd8 {[%clk 0:00:15]} 38. Qxb6 {[%clk 0:00:27]}  Rfd7 {[%clk 0:00:15]} 39. Qxc5 {[%clk 0:00:27]}  g5 {[%clk 0:00:15]} 40. Rxe5 {[%clk 0:00:27]}  Qf6 {[%clk 0:00:12]} 41. Rxg5+ {[%clk 0:00:26]}  Kh8 {[%clk 0:00:13]} 42. Rf5 {[%clk 0:00:24]}  Qg6 {[%clk 0:00:13]} 43. Qe5+ {[%clk 0:00:24]}  Qg7 {[%clk 0:00:13]} 44. Qxg7+ {[%clk 0:00:23]}  Kxg7 {[%clk 0:00:14]} 45. c5 {[%clk 0:00:24]}  Rc8 {[%clk 0:00:13]} 46. Rfd5 {[%clk 0:00:21]}  Kf6 {[%clk 0:00:13]} 47. e5+ {[%clk 0:00:19]}  Ke6 {[%clk 0:00:14]} 48. Kf1 {[%clk 0:00:19]}  Rc6 {[%clk 0:00:14]} 49. Ke2 {[%clk 0:00:19]}  Rc8 {[%clk 0:00:12]} 50. R5d4 {[%clk 0:00:15]}  Kxe5 {[%clk 0:00:11]} 51. Re4+ {[%clk 0:00:15]}  Kf5 {[%clk 0:00:12]} 52. Rc4 {[%clk 0:00:15]}  Ke5 {[%clk 0:00:11]} 53. Rdd4 {[%clk 0:00:13]}  Rc6 {[%clk 0:00:11]} 54. Re4+ {[%clk 0:00:13]}  Kd5 {[%clk 0:00:11]} 55. Rxf4 {[%clk 0:00:10]}  Rxc5 {[%clk 0:00:12]} 56. Rxc5+ {[%clk 0:00:10]}  Kxc5 {[%clk 0:00:13]} 57. Rf6 {[%clk 0:00:10]}  Kb4 {[%clk 0:00:13]} 58. Kd3 {[%clk 0:00:10]}  Kxa4 {[%clk 0:00:14]} 59. Kd4 {[%clk 0:00:11]}  Kb4 {[%clk 0:00:14]} 60. Kd5 {[%clk 0:00:12]}  a4 {[%clk 0:00:15]} 0-1


[Site "https://www.chess.com"]

[Event "Titled Tuesday Blitz May 30 Late 2023"]
[White "Prado Lobo, Jonas"]
[Black "Skaric, Djuro"]
[WhiteFideId "32050666"]
[BlackFideId "934569"]
[WhiteElo "2322"]
[BlackElo "2282"]
[Result "1-0"]
[Round "03"]
[TimeControl "180+2"]
[Date "2023.05.31"]
[WhiteClock "0:00:42"]
[BlackClock "0:01:07"]

1. d4 {[%clk 0:03:00]}  g6 {[%clk 0:02:58]} 2. Nf3 {[%clk 0:02:56]}  Bg7 {[%clk 0:02:57]} 3. g3 {[%clk 0:02:57]}  d6 {[%clk 0:02:55]} 4. Bg2 {[%clk 0:02:57]}  Nf6 {[%clk 0:02:56]} 5. O-O {[%clk 0:02:57]}  O-O {[%clk 0:02:57]} 6. Nc3 {[%clk 0:02:54]}  Nc6 {[%clk 0:02:57]} 7. e4 {[%clk 0:02:50]}  h6 {[%clk 0:02:54]} 8. d5 {[%clk 0:02:45]}  Ne5 {[%clk 0:02:53]} 9. Nxe5 {[%clk 0:02:44]}  dxe5 {[%clk 0:02:54]} 10. h3 {[%clk 0:02:36]}  Ne8 {[%clk 0:02:55]} 11. Be3 {[%clk 0:02:28]}  a6 {[%clk 0:02:55]} 12. Qd2 {[%clk 0:02:26]}  Kh7 {[%clk 0:02:54]} 13. f4 {[%clk 0:02:22]}  exf4 {[%clk 0:02:53]} 14. gxf4 {[%clk 0:02:23]}  e6 {[%clk 0:02:50]} 15. Rad1 {[%clk 0:02:16]}  exd5 {[%clk 0:02:48]} 16. Nxd5 {[%clk 0:02:16]}  Nd6 {[%clk 0:02:42]} 17. b3 {[%clk 0:02:10]}  Be6 {[%clk 0:02:37]} 18. c4 {[%clk 0:01:58]}  Bxd5 {[%clk 0:02:16]} 19. Qxd5 {[%clk 0:01:45]}  Qe7 {[%clk 0:02:13]} 20. e5 {[%clk 0:01:43]}  Nf5 {[%clk 0:02:02]} 21. Bc5 {[%clk 0:01:43]}  Qe6 {[%clk 0:02:02]} 22. Bxf8 {[%clk 0:01:42]}  Bxf8 {[%clk 0:02:02]} 23. Qxe6 {[%clk 0:01:38]}  fxe6 {[%clk 0:02:02]} 24. Rd7+ {[%clk 0:01:38]}  Kg8 {[%clk 0:02:01]} 25. Bxb7 {[%clk 0:01:34]}  Ra7 {[%clk 0:01:58]} 26. Rxc7 {[%clk 0:01:28]}  a5 {[%clk 0:01:57]} 27. Rd1 {[%clk 0:01:22]}  Be7 {[%clk 0:01:55]} 28. Rdd7 {[%clk 0:01:18]}  Kf8 {[%clk 0:01:52]} 29. Be4 {[%clk 0:01:18]}  Bc5+ {[%clk 0:01:41]} 30. Kh2 {[%clk 0:01:11]}  Rxc7 {[%clk 0:01:36]} 31. Rxc7 {[%clk 0:01:11]}  Be3 {[%clk 0:01:35]} 32. Bxf5 {[%clk 0:01:08]}  Bxf4+ {[%clk 0:01:35]} 33. Kg2 {[%clk 0:01:08]}  exf5 {[%clk 0:01:30]} 34. Rc5 {[%clk 0:01:01]}  h5 {[%clk 0:01:24]} 35. Rxa5 {[%clk 0:00:58]}  Ke7 {[%clk 0:01:22]} 36. Rd5 {[%clk 0:00:50]}  g5 {[%clk 0:01:21]} 37. a4 {[%clk 0:00:50]}  g4 {[%clk 0:01:21]} 38. hxg4 {[%clk 0:00:51]}  fxg4 {[%clk 0:01:19]} 39. a5 {[%clk 0:00:50]}  h4 {[%clk 0:01:19]} 40. Rd4 {[%clk 0:00:43]}  h3+ {[%clk 0:01:19]} 41. Kh1 {[%clk 0:00:43]}  Bxe5 {[%clk 0:01:11]} 42. Rxg4 {[%clk 0:00:43]}  Bc3 {[%clk 0:01:07]} 43. a6 {[%clk 0:00:42]} 1-0


[Site "https://www.chess.com"]

[Event "Titled Tuesday Blitz May 30 Late 2023"]
[White "i_like_explosions"]
[Black "Shuvalov, Evgenij"]
[BlackFideId "4187237"]
[WhiteElo "2408"]
[BlackElo "2080"]
[Result "1/2-1/2"]
[Round "03"]
[TimeControl "180+2"]
[Date "2023.05.31"]
[WhiteClock "0:00:37"]
[BlackClock "0:00:52"]

1. d4 {[%clk 0:02:59]}  Nf6 {[%clk 0:02:59]} 2. Bg5 {[%clk 0:02:59]}  d5 {[%clk 0:02:58]} 3. Bxf6 {[%clk 0:02:59]}  gxf6 {[%clk 0:02:57]} 4. e3 {[%clk 0:02:59]}  Bf5 {[%clk 0:02:57]} 5. c4 {[%clk 0:02:56]}  c6 {[%clk 0:02:53]} 6. Nc3 {[%clk 0:02:56]}  e6 {[%clk 0:02:52]} 7. cxd5 {[%clk 0:02:54]}  cxd5 {[%clk 0:02:51]} 8. Nf3 {[%clk 0:02:54]}  Nc6 {[%clk 0:02:51]} 9. Bb5 {[%clk 0:02:48]}  Rc8 {[%clk 0:02:50]} 10. O-O {[%clk 0:02:47]}  Bd6 {[%clk 0:02:49]} 11. Qa4 {[%clk 0:02:47]}  a6 {[%clk 0:02:46]} 12. Be2 {[%clk 0:02:40]}  O-O {[%clk 0:02:40]} 13. Rac1 {[%clk 0:02:39]}  Bg6 {[%clk 0:02:34]} 14. Nh4 {[%clk 0:02:32]}  Qb6 {[%clk 0:02:29]} 15. Nxg6 {[%clk 0:02:32]}  hxg6 {[%clk 0:02:30]} 16. Qc2 {[%clk 0:02:24]}  Kg7 {[%clk 0:02:28]} 17. a3 {[%clk 0:02:22]}  Rh8 {[%clk 0:02:25]} 18. g3 {[%clk 0:02:20]}  Rh6 {[%clk 0:02:18]} 19. Bf3 {[%clk 0:02:13]}  Rch8 {[%clk 0:02:17]} 20. h4 {[%clk 0:02:14]}  Qc7 {[%clk 0:02:15]} 21. Ne2 {[%clk 0:02:09]}  Qb8 {[%clk 0:02:11]} 22. Rfd1 {[%clk 0:02:03]}  Ne7 {[%clk 0:02:11]} 23. e4 {[%clk 0:01:34]}  dxe4 {[%clk 0:02:04]} 24. Qxe4 {[%clk 0:01:33]}  Nd5 {[%clk 0:01:48]} 25. Qd3 {[%clk 0:01:29]}  f5 {[%clk 0:01:44]} 26. Bxd5 {[%clk 0:01:23]}  exd5 {[%clk 0:01:44]} 27. Qf3 {[%clk 0:01:23]}  Rd8 {[%clk 0:01:42]} 28. Nf4 {[%clk 0:01:21]}  Bxf4 {[%clk 0:01:42]} 29. Qxf4 {[%clk 0:01:21]}  Qxf4 {[%clk 0:01:42]} 30. gxf4 {[%clk 0:01:22]}  Rxh4 {[%clk 0:01:42]} 31. Rc7 {[%clk 0:01:22]}  Rxf4 {[%clk 0:01:39]} 32. Rxb7 {[%clk 0:01:22]}  Rd6 {[%clk 0:01:40]} 33. Kg2 {[%clk 0:01:20]}  Re4 {[%clk 0:01:38]} 34. Rd2 {[%clk 0:01:16]}  g5 {[%clk 0:01:37]} 35. b4 {[%clk 0:01:15]}  g4 {[%clk 0:01:35]} 36. a4 {[%clk 0:01:11]}  Rc6 {[%clk 0:01:29]} 37. Rd7 {[%clk 0:01:08]}  Rc4 {[%clk 0:01:28]} 38. Rxd5 {[%clk 0:01:08]}  Kg6 {[%clk 0:01:26]} 39. Ra5 {[%clk 0:01:06]}  Rxb4 {[%clk 0:01:24]} 40. Rxa6+ {[%clk 0:01:06]}  Kg5 {[%clk 0:01:23]} 41. d5 {[%clk 0:01:06]}  Rxa4 {[%clk 0:01:23]} 42. Rxa4 {[%clk 0:01:05]}  Rxa4 {[%clk 0:01:24]} 43. d6 {[%clk 0:01:06]}  Ra8 {[%clk 0:01:24]} 44. d7 {[%clk 0:01:04]}  Rd8 {[%clk 0:01:24]} 45. Rd6 {[%clk 0:01:04]}  f4 {[%clk 0:01:22]} 46. Kh2 {[%clk 0:01:04]}  Kf5 {[%clk 0:01:22]} 47. Kg2 {[%clk 0:01:02]}  Ke5 {[%clk 0:01:22]} 48. Rd1 {[%clk 0:01:00]}  Ke6 {[%clk 0:01:22]} 49. Rd4 {[%clk 0:01:00]}  Ke5 {[%clk 0:01:20]} 50. Rd1 {[%clk 0:01:00]}  f5 {[%clk 0:01:21]} 51. Rd2 {[%clk 0:00:56]}  Ke6 {[%clk 0:01:17]} 52. Rd4 {[%clk 0:00:56]}  f3+ {[%clk 0:01:17]} 53. Kg3 {[%clk 0:00:55]}  Rxd7 {[%clk 0:01:17]} 54. Ra4 {[%clk 0:00:55]}  Kf6 {[%clk 0:01:12]} 55. Ra8 {[%clk 0:00:50]}  Rd4 {[%clk 0:00:58]} 56. Rf8+ {[%clk 0:00:49]}  Kg6 {[%clk 0:00:57]} 57. Rg8+ {[%clk 0:00:49]}  Kf7 {[%clk 0:00:57]} 58. Ra8 {[%clk 0:00:49]}  Rd1 {[%clk 0:00:56]} 59. Kf4 {[%clk 0:00:44]}  Rf1 {[%clk 0:00:55]} 60. Kxf5 {[%clk 0:00:42]}  g3 {[%clk 0:00:55]} 61. fxg3 {[%clk 0:00:39]}  f2 {[%clk 0:00:55]} 62. Ra7+ {[%clk 0:00:38]}  Kg8 {[%clk 0:00:55]} 63. Ra2 {[%clk 0:00:38]}  Rg1 {[%clk 0:00:52]} 64. Rxf2 {[%clk 0:00:38]}  Rxg3 {[%clk 0:00:52]} 65. Rf4 {[%clk 0:00:37]} 1/2-1/2


[Site "https://www.chess.com"]

[Event "Titled Tuesday Blitz May 30 Late 2023"]
[White "Pein, Jonathan"]
[Black "Keleberda, Tymur"]
[WhiteFideId "417092"]
[BlackFideId "14174294"]
[WhiteElo "2151"]
[BlackElo "2198"]
[Result "1-0"]
[Round "03"]
[TimeControl "180+2"]
[Date "2023.05.31"]
[WhiteClock "0:00:45"]
[BlackClock "0:01:42"]

1. b3 {[%clk 0:02:58]}  e5 {[%clk 0:02:59]} 2. Bb2 {[%clk 0:02:58]}  d6 {[%clk 0:03:00]} 3. e3 {[%clk 0:02:59]}  Nf6 {[%clk 0:02:58]} 4. d4 {[%clk 0:02:59]}  Nc6 {[%clk 0:02:59]} 5. Nf3 {[%clk 0:03:00]}  e4 {[%clk 0:02:58]} 6. Nfd2 {[%clk 0:03:00]}  Be7 {[%clk 0:02:58]} 7. c4 {[%clk 0:03:00]}  d5 {[%clk 0:02:57]} 8. Nc3 {[%clk 0:03:00]}  O-O {[%clk 0:02:56]} 9. a3 {[%clk 0:03:00]}  Be6 {[%clk 0:02:54]} 10. Qc2 {[%clk 0:02:59]}  Na5 {[%clk 0:02:45]} 11. cxd5 {[%clk 0:02:55]}  Bxd5 {[%clk 0:02:46]} 12. Nxd5 {[%clk 0:02:52]}  Qxd5 {[%clk 0:02:47]} 13. b4 {[%clk 0:02:50]}  Nc6 {[%clk 0:02:46]} 14. Bc4 {[%clk 0:02:51]}  Qg5 {[%clk 0:02:45]} 15. Nxe4 {[%clk 0:02:29]}  Qxg2 {[%clk 0:02:40]} 16. Nxf6+ {[%clk 0:02:29]}  Bxf6 {[%clk 0:02:41]} 17. O-O-O {[%clk 0:02:30]}  Qf3 {[%clk 0:02:30]} 18. Rhg1 {[%clk 0:02:27]}  a6 {[%clk 0:02:18]} 19. Rg3 {[%clk 0:02:20]}  Qh5 {[%clk 0:02:18]} 20. Rdg1 {[%clk 0:02:11]}  b5 {[%clk 0:02:14]} 21. Be2 {[%clk 0:01:59]}  Qxh2 {[%clk 0:02:09]} 22. Qxc6 {[%clk 0:01:54]}  Qxf2 {[%clk 0:02:07]} 23. R1g2 {[%clk 0:01:05]}  Qe1+ {[%clk 0:02:06]} 24. Bd1 {[%clk 0:01:03]}  Rae8 {[%clk 0:01:58]} 25. Qxf6 {[%clk 0:01:00]}  g6 {[%clk 0:01:56]} 26. d5 {[%clk 0:00:51]}  Rxe3 {[%clk 0:01:42]} 27. Qg7# {[%clk 0:00:45]} 1-0


[Site "https://www.chess.com"]

[Event "Titled Tuesday Blitz May 30 Late 2023"]
[White "micke12a"]
[Black "Eugene, Floryan"]
[BlackFideId "20694784"]
[WhiteElo "2400"]
[BlackElo "2369"]
[Result "1/2-1/2"]
[Round "03"]
[TimeControl "180+2"]
[Date "2023.05.31"]
[WhiteClock "0:00:08"]
[BlackClock "0:00:02"]

1. d4 {[%clk 0:03:00]}  f5 {[%clk 0:02:59]} 2. g3 {[%clk 0:02:59]}  Nf6 {[%clk 0:02:59]} 3. Bg2 {[%clk 0:02:59]}  g6 {[%clk 0:02:58]} 4. c4 {[%clk 0:02:59]}  Bg7 {[%clk 0:02:58]} 5. Nc3 {[%clk 0:03:00]}  O-O {[%clk 0:02:56]} 6. Nf3 {[%clk 0:03:00]}  d6 {[%clk 0:02:55]} 7. O-O {[%clk 0:03:00]}  c6 {[%clk 0:02:55]} 8. b3 {[%clk 0:02:59]}  Qc7 {[%clk 0:02:52]} 9. Bb2 {[%clk 0:02:56]}  e5 {[%clk 0:02:50]} 10. dxe5 {[%clk 0:02:56]}  dxe5 {[%clk 0:02:51]} 11. e4 {[%clk 0:02:35]}  Rd8 {[%clk 0:02:41]} 12. Qe2 {[%clk 0:02:32]}  f4 {[%clk 0:02:16]} 13. Rad1 {[%clk 0:02:23]}  Re8 {[%clk 0:02:08]} 14. Qd2 {[%clk 0:02:12]}  Na6 {[%clk 0:02:05]} 15. Qd6 {[%clk 0:02:12]}  Bg4 {[%clk 0:02:03]} 16. Qxc7 {[%clk 0:02:10]}  Nxc7 {[%clk 0:02:04]} 17. h3 {[%clk 0:02:08]}  Bxf3 {[%clk 0:02:04]} 18. Bxf3 {[%clk 0:02:09]}  Ne6 {[%clk 0:02:04]} 19. h4 {[%clk 0:01:56]}  Nd4 {[%clk 0:02:04]} 20. Kg2 {[%clk 0:01:56]}  Rad8 {[%clk 0:01:41]} 21. Ne2 {[%clk 0:01:53]}  c5 {[%clk 0:01:38]} 22. Nc3 {[%clk 0:01:51]}  Rf8 {[%clk 0:01:31]} 23. g4 {[%clk 0:01:49]}  Rd6 {[%clk 0:01:10]} 24. Nb5 {[%clk 0:01:32]}  Ra6 {[%clk 0:01:04]} 25. Nc3 {[%clk 0:01:14]}  h5 {[%clk 0:01:02]} 26. g5 {[%clk 0:01:12]}  Ng4 {[%clk 0:00:53]} 27. Rd2 {[%clk 0:00:58]}  Nxf3 {[%clk 0:00:41]} 28. Kxf3 {[%clk 0:00:57]}  Nh2+ {[%clk 0:00:41]} 29. Kg2 {[%clk 0:00:57]}  Nxf1 {[%clk 0:00:42]} 30. Kxf1 {[%clk 0:00:58]}  f3 {[%clk 0:00:40]} 31. Rd7 {[%clk 0:00:26]}  Rf7 {[%clk 0:00:39]} 32. Rd8+ {[%clk 0:00:25]}  Bf8 {[%clk 0:00:37]} 33. Nd5 {[%clk 0:00:20]}  Rd6 {[%clk 0:00:37]} 34. Ne7+ {[%clk 0:00:16]}  Rxe7 {[%clk 0:00:33]} 35. Rxd6 {[%clk 0:00:16]}  Kh7 {[%clk 0:00:25]} 36. Rd5 {[%clk 0:00:13]}  Bg7 {[%clk 0:00:20]} 37. Rxc5 {[%clk 0:00:13]}  Rf7 {[%clk 0:00:19]} 38. Bc1 {[%clk 0:00:10]}  Rd7 {[%clk 0:00:13]} 39. Rd5 {[%clk 0:00:11]}  Rc7 {[%clk 0:00:13]} 40. Be3 {[%clk 0:00:11]}  a6 {[%clk 0:00:13]} 41. Ke1 {[%clk 0:00:10]}  Kg8 {[%clk 0:00:13]} 42. Kd2 {[%clk 0:00:11]}  Kf7 {[%clk 0:00:14]} 43. Kd3 {[%clk 0:00:11]}  Ke6 {[%clk 0:00:14]} 44. c5 {[%clk 0:00:11]}  Bf8 {[%clk 0:00:14]} 45. b4 {[%clk 0:00:10]}  Be7 {[%clk 0:00:15]} 46. Kc4 {[%clk 0:00:09]}  b5+ {[%clk 0:00:15]} 47. Kd3 {[%clk 0:00:09]}  a5 {[%clk 0:00:15]} 48. a3 {[%clk 0:00:09]}  axb4 {[%clk 0:00:15]} 49. axb4 {[%clk 0:00:10]}  Ra7 {[%clk 0:00:16]} 50. Bd2 {[%clk 0:00:06]}  Ra2 {[%clk 0:00:14]} 51. Ke3 {[%clk 0:00:06]}  Rc2 {[%clk 0:00:13]} 52. Rd3 {[%clk 0:00:06]}  Rc4 {[%clk 0:00:13]} 53. Kxf3 {[%clk 0:00:05]}  Rc2 {[%clk 0:00:09]} 54. Ke2 {[%clk 0:00:06]}  Rc4 {[%clk 0:00:06]} 55. f3 {[%clk 0:00:06]}  Rc2 {[%clk 0:00:06]} 56. Ke3 {[%clk 0:00:07]}  Rb2 {[%clk 0:00:05]} 57. Ra3 {[%clk 0:00:07]}  Rc2 {[%clk 0:00:02]} 58. Ra6+ {[%clk 0:00:07]}  Kf7 {[%clk 0:00:02]} 59. Rb6 {[%clk 0:00:08]}  Rc4 {[%clk 0:00:02]} 60. Rxb5 {[%clk 0:00:08]}  Rd4 {[%clk 0:00:03]} 61. Bc3 {[%clk 0:00:07]}  Rc4 {[%clk 0:00:03]} 62. Kd3 {[%clk 0:00:08]}  Rxc3+ {[%clk 0:00:02]} 63. Kxc3 {[%clk 0:00:08]}  Bd8 {[%clk 0:00:01]} 64. Kc4 {[%clk 0:00:08]}  Ke6 {[%clk 0:00:02]} 65. Rb7 {[%clk 0:00:08]}  Bc7 {[%clk 0:00:02]} 66. Rxc7 {[%clk 0:00:08]} 1/2-1/2


[Site "https://www.chess.com"]

[Event "Titled Tuesday Blitz May 30 Late 2023"]
[White "Sliwicki, Damian"]
[Black "Bayo Milagro, Alvaro"]
[WhiteFideId "1127128"]
[BlackFideId "22275240"]
[WhiteElo "2030"]
[BlackElo "2270"]
[Result "1/2-1/2"]
[Round "03"]
[TimeControl "180+2"]
[Date "2023.05.31"]
[WhiteClock "0:00:21"]
[BlackClock "0:00:12"]

1. e4 {[%clk 0:02:59]}  e5 {[%clk 0:02:59]} 2. d4 {[%clk 0:02:58]}  exd4 {[%clk 0:02:56]} 3. Nf3 {[%clk 0:02:58]}  Nc6 {[%clk 0:02:56]} 4. Bc4 {[%clk 0:02:57]}  Nf6 {[%clk 0:02:56]} 5. O-O {[%clk 0:02:58]}  Nxe4 {[%clk 0:02:56]} 6. Re1 {[%clk 0:02:58]}  d5 {[%clk 0:02:57]} 7. Bxd5 {[%clk 0:02:59]}  Qxd5 {[%clk 0:02:57]} 8. Nc3 {[%clk 0:03:00]}  Qh5 {[%clk 0:02:58]} 9. Nxe4 {[%clk 0:03:01]}  Be6 {[%clk 0:02:58]} 10. Bg5 {[%clk 0:03:01]}  Bd6 {[%clk 0:02:58]} 11. Nxd6+ {[%clk 0:02:59]}  cxd6 {[%clk 0:02:58]} 12. Bf4 {[%clk 0:02:58]}  Qd5 {[%clk 0:02:58]} 13. c3 {[%clk 0:02:54]}  Qf5 {[%clk 0:02:53]} 14. Bxd6 {[%clk 0:02:50]}  O-O-O {[%clk 0:02:52]} 15. Bg3 {[%clk 0:01:47]}  dxc3 {[%clk 0:02:44]} 16. Qc1 {[%clk 0:01:47]}  c2 {[%clk 0:02:30]} 17. Qe3 {[%clk 0:01:35]}  Rd7 {[%clk 0:02:08]} 18. Rac1 {[%clk 0:01:35]}  Rhd8 {[%clk 0:02:02]} 19. Nh4 {[%clk 0:01:20]}  Qa5 {[%clk 0:01:55]} 20. Rxc2 {[%clk 0:01:10]}  Qxe1+ {[%clk 0:01:36]} 21. Qxe1 {[%clk 0:01:11]}  Rd1 {[%clk 0:01:36]} 22. Kf1 {[%clk 0:00:57]}  Bxa2 {[%clk 0:01:14]} 23. b4 {[%clk 0:00:57]}  Bb3 {[%clk 0:01:09]} 24. Rc3 {[%clk 0:00:57]}  Ba4 {[%clk 0:01:05]} 25. Qxd1 {[%clk 0:00:47]}  Rxd1+ {[%clk 0:01:04]} 26. Ke2 {[%clk 0:00:48]}  Rb1 {[%clk 0:00:46]} 27. Nf5 {[%clk 0:00:43]}  Rxb4 {[%clk 0:00:38]} 28. Nd6+ {[%clk 0:00:36]}  Kd7 {[%clk 0:00:33]} 29. Nxf7 {[%clk 0:00:36]}  Bb5+ {[%clk 0:00:27]} 30. Kd2 {[%clk 0:00:32]}  a5 {[%clk 0:00:23]} 31. Ne5+ {[%clk 0:00:27]}  Nxe5 {[%clk 0:00:21]} 32. Bxe5 {[%clk 0:00:28]}  g6 {[%clk 0:00:20]} 33. Rc7+ {[%clk 0:00:26]}  Ke6 {[%clk 0:00:20]} 34. Bc3 {[%clk 0:00:27]}  Ra4 {[%clk 0:00:14]} 35. Rxb7 {[%clk 0:00:26]}  Bc6 {[%clk 0:00:14]} 36. Ra7 {[%clk 0:00:25]}  Bxg2 {[%clk 0:00:13]} 37. Rxa5 {[%clk 0:00:25]}  Rxa5 {[%clk 0:00:14]} 38. Bxa5 {[%clk 0:00:26]}  Kf5 {[%clk 0:00:14]} 39. Ke3 {[%clk 0:00:26]}  Kg4 {[%clk 0:00:15]} 40. Bc7 {[%clk 0:00:27]}  g5 {[%clk 0:00:14]} 41. Bg3 {[%clk 0:00:27]}  h5 {[%clk 0:00:13]} 42. Bc7 {[%clk 0:00:28]}  Ba8 {[%clk 0:00:12]} 43. Bd8 {[%clk 0:00:27]}  Kf5 {[%clk 0:00:12]} 44. h4 {[%clk 0:00:26]}  gxh4 {[%clk 0:00:11]} 45. Bxh4 {[%clk 0:00:26]}  Kg4 {[%clk 0:00:11]} 46. Bd8 {[%clk 0:00:24]}  h4 {[%clk 0:00:12]} 47. f3+ {[%clk 0:00:22]}  Kg3 {[%clk 0:00:11]} 48. Bxh4+ {[%clk 0:00:22]}  Kxh4 {[%clk 0:00:12]} 49. Kf4 {[%clk 0:00:21]}  Bxf3 {[%clk 0:00:12]} 1/2-1/2


[Site "https://www.chess.com"]

[Event "Titled Tuesday Blitz May 30 Late 2023"]
[White "ATM622"]
[Black "Rangel, Daniel"]
[BlackFideId "2124475"]
[WhiteElo "2565"]
[BlackElo "2256"]
[Result "0-1"]
[Round "03"]
[TimeControl "180+2"]
[Date "2023.05.31"]
[WhiteClock "0:00:02"]
[BlackClock "0:00:12"]

1. d4 {[%clk 0:03:00]}  Nf6 {[%clk 0:02:54]} 2. c4 {[%clk 0:03:00]}  e6 {[%clk 0:02:55]} 3. g3 {[%clk 0:02:59]}  d5 {[%clk 0:02:56]} 4. Bg2 {[%clk 0:02:59]}  Be7 {[%clk 0:02:57]} 5. Nf3 {[%clk 0:02:59]}  O-O {[%clk 0:02:57]} 6. O-O {[%clk 0:03:00]}  a5 {[%clk 0:02:58]} 7. Nbd2 {[%clk 0:03:00]}  c6 {[%clk 0:02:58]} 8. Qc2 {[%clk 0:03:00]}  b6 {[%clk 0:02:58]} 9. e4 {[%clk 0:03:00]}  Ba6 {[%clk 0:02:55]} 10. b3 {[%clk 0:02:58]}  b5 {[%clk 0:02:45]} 11. e5 {[%clk 0:02:55]}  Nfd7 {[%clk 0:02:41]} 12. c5 {[%clk 0:02:55]}  b4 {[%clk 0:02:40]} 13. Rd1 {[%clk 0:02:54]}  f6 {[%clk 0:02:36]} 14. Bh3 {[%clk 0:02:49]}  fxe5 {[%clk 0:02:30]} 15. Bxe6+ {[%clk 0:02:49]}  Kh8 {[%clk 0:02:31]} 16. Nxe5 {[%clk 0:02:44]}  Nxe5 {[%clk 0:02:23]} 17. dxe5 {[%clk 0:02:45]}  Nd7 {[%clk 0:02:23]} 18. Bf5 {[%clk 0:02:32]}  Bxc5 {[%clk 0:02:14]} 19. Ne4 {[%clk 0:02:18]}  Ba7 {[%clk 0:01:35]} 20. Ng5 {[%clk 0:02:14]}  Nxe5 {[%clk 0:01:26]} 21. Bf4 {[%clk 0:02:13]}  h6 {[%clk 0:01:04]} 22. Ne6 {[%clk 0:02:06]}  Qf6 {[%clk 0:00:51]} 23. Nxf8 {[%clk 0:01:05]}  Rxf8 {[%clk 0:00:52]} 24. Bxe5 {[%clk 0:00:34]}  Qxe5 {[%clk 0:00:51]} 25. g4 {[%clk 0:00:28]}  Bb8 {[%clk 0:00:33]} 26. Rd3 {[%clk 0:00:03]}  Qxh2+ {[%clk 0:00:30]} 27. Kf1 {[%clk 0:00:04]}  Qh1+ {[%clk 0:00:30]} 28. Ke2 {[%clk 0:00:04]}  Qxa1 {[%clk 0:00:31]} 29. Qxc6 {[%clk 0:00:02]}  Bxd3+ {[%clk 0:00:25]} 30. Kxd3 {[%clk 0:00:03]}  Qf6 {[%clk 0:00:23]} 31. Qd7 {[%clk 0:00:02]}  Bf4 {[%clk 0:00:15]} 32. Ke2 {[%clk 0:00:02]}  Bg5 {[%clk 0:00:14]} 33. f4 {[%clk 0:00:01]}  Bh4 {[%clk 0:00:14]} 34. Qxd5 {[%clk 0:00:01]}  Re8+ {[%clk 0:00:12]} 35. Kd3 {[%clk 0:00:02]}  Qc3# {[%clk 0:00:12]} 0-1


[Site "https://www.chess.com"]